Cogmind - Beta 17 @@@ ROGUE MODE // 2026.07.04 @ 18:07:27 Player: eph7ra Result: Destroyed by Y-45 Defender with Heavy Assault Rifle Performance ------------- Evolutions (1) 500 Regions Visited (4) 800 Robots Destroyed (7) 35 Value Destroyed (143) 143 Prototype IDs (1) 20 Alien Tech Used (0) 0 Bonus (200) 200 TOTAL SCORE: 1698 Bonus ------- Pacifist 200 Cogmind --------- Core Integrity 0/400 Matter 233/300 Energy 49/100 System Corruption 2% Temperature Cool (9) Movement Core (150) Ox2 Location -9/Storage Parts ------- > --- POWER (1) -------- (None) > --- PROPULSION (3) --- (None) > --- UTILITY (3) ------ Small Storage Unit Weapon Shielding > --- WEAPON (2) ------- Light Assault Rifle > --- INVENTORY (8) ---- Wheel Wheel Seismic Detector Peak State ------------ > --- POWER ------------ Heavy Ion Engine > --- PROPULSION ------- Improved Hover Unit Combat Airjet Combat Airjet > --- UTILITY ---------- Small Storage Unit > --- WEAPON ----------- EM Pulse Gun Grenade Launcher > --- INVENTORY -------- Ion Engine Wheel Wheel Improved Hover Unit Improved Hover Unit Small Laser Light Assault Rifle Mining Laser [Rating: 19] Favorites ----------- Power Ion Engine Engine Ion Engine Propulsion Aluminum Leg Leg Aluminum Leg Hover Unit Combat Airjet Utility Small Storage Unit Storage Small Storage Unit Protection Weapon Shielding Weapon EM Pulse Gun Energy Gun EM Pulse Gun Ballistic Gun Light Assault Rifle Launcher Grenade Launcher Special Weapon Mining Laser Build | -11 -10 -10 -9 -9 ------- Run | Yrd Mat Min Mat Sto Slots Evolved 2 | . . . 2 . Power . | . . . . . Propulsion 1 | . . . 1 . Utility 1 | . . . 1 . Weapon . | . . . . . Parts Attached 20 | 6 . 3 1 10 Power 3 | 1 . . . 2 Engine 3 | 1 . . . 2 Core . | . . . . . Reactor . | . . . . . Propulsion 7 | 2 . 2 1 2 Treads . | . . . . . Leg 2 | 2 . . . . Wheel . | . . . . . Hover 5 | . . 2 1 2 Flight . | . . . . . Utility 3 | 1 . . . 2 Device . | . . . . . Storage 1 | 1 . . . . Processor . | . . . . . Hackware . | . . . . . Protection 2 | . . . . 2 Artifact . | . . . . . Weapon 7 | 2 . 1 . 4 Energy Gun 2 | 2 . . . . Energy Cannon . | . . . . . Ballistic Gun 2 | . . . . 2 Ballistic Cannon . | . . . . . Launcher 1 | . . 1 . . Special Weapon 2 | . . . . 2 Impact Weapon . | . . . . . Slashing Weapon . | . . . . . Piercing Weapon . | . . . . . Special Melee Weapon . | . . . . . Unidentified Prototypes 1 | . . . . 1 Parts Lost 13 | . . . . 13 Power 2 | . . . . 2 Propulsion 4 | . . . . 4 Utility 1 | . . . . 1 Weapon 6 | . . . . 6 Highest Loss Streak 7 | . . . . 7 To Critical Strikes . | . . . . . Average Backups 6 | 3 6 7 7 4 Power . | . 1 1 1 . Propulsion 3 | 2 4 4 3 2 Utility . | . . . . . Weapon 2 | . 1 2 3 1 Tool/Special . | . . . . . Unused Backups 4 | . . . 2 2 Power . | . . . . . Propulsion 4 | . . . 2 2 Utility . | . . . . . Weapon . | . . . . . Tool/Special . | . . . . . Average Slot Usage (%) 80 | . 85 85 73 74 Engine 10 | . 14 14 11 5 Leg 13 | . 28 25 . . Hover 14 | . . 2 29 26 Storage 12 | . 14 14 11 11 Protection 5 | . . . . 13 Energy Gun 15 | . 28 21 11 8 Ballistic Gun 3 | . . . . 8 Launcher 4 | . . 6 11 1 Peak Build Rating 19 | 6 6 14 17 19 Average Rating 9 | 4 6 6 16 13 On Entrance 8 | . 6 6 14 17 Avg Prop Armor Cover (%) 6 | . . 7 . 5 Naked Turns . | . . . . . Heaviest Build 18 | 13 13 15 15 18 Greatest Support 31 | 20 20 24 31 31 Greatest Overweight (x) 2 | 2 . 1 . 2 Average Overweight (x) . | . . . . . Largest Inventory Capacity 8 | 8 8 8 8 8 Average Capacity 7 | 6 8 8 8 8 Most Carried 8 | 6 7 8 8 8 Average Carried 6 | 3 6 7 7 4 Final Capacity 8 | 8 8 8 8 8 Final Carried 8 | 6 7 8 8 3 Class Distribution -------------------- 100% | Mutant Dominant Class ---------------- Mutant | -10/Materials Mutant | -10/Mines Mutant | -9/Materials Mutant | -9/Storage Resources | -11 -10 -10 -9 -9 ----------- Run | Yrd Mat Min Mat Sto Matter Collected 427 | 254 . 79 . 94 Remotely . | . . . . . Salvage Created 183 | . . 11 . 172 Parts 19 | . . . . 19 Haulers Intercepted . | . . . . . Recyclers Shooed . | . . . . . Parts Field Recycled . | . . . . . Retrieved Matter . | . . . . . Parts Self-Destructed . | . . . . . Prevented . | . . . . . Parts Restored . | . . . . . Kills | -11 -10 -10 -9 -9 ------- Run | Yrd Mat Min Mat Sto Combat Hostiles Destroyed 10 | . . 6 . 4 Guns 3 | . . . . 3 Cannons 1 | . . . . 1 AOE 6 | . . 6 . . Classes Destroyed 6 | . . 1 . 5 Worker 1 | . . . . 1 Builder 1 | . . . . 1 Tunneler 1 | . . . . 1 Swarmer 2 | . . . . 2 Sentry 2 | . . . . 2 Assembled 6 | . . 6 . . Best Kill Streak 5 | . . 5 . 3 Combat Bots Only 5 | . . 5 . 2 Max Kills in Single Turn 2 | . . 2 . 2 Gunslinging . | . . . . . Exploded 2 | . . 2 . . Melee . | . . . . . Uniques/NPCs Destroyed . | . . . . . Combat | -11 -10 -10 -9 -9 -------- Run | Yrd Mat Min Mat Sto Hostile Shots Fired 186 | . 1 20 7 158 Missed 73 | . . 7 1 65 Hits 113 | . 1 13 6 93 Melee 1 | . . . . 1 Projectile 112 | . 1 13 6 92 Critical Strikes 2 | . . . . 2 Part Disruptions 1 | . . 1 . . Damage Taken 1376 | . 11 177 88 1100 Core 422 | . . 18 32 372 Absorbed by Shields . | . . . . . Redirected to Shielding 77 | . . . . 77 Core Remaining (%) 96 | 100 . 92 . . Volleys Fired 43 | . . 12 1 30 Largest 2 | . . 2 1 2 Hottest 140 | . . 70 30 140 Shots Fired 64 | . . 24 1 39 Gun 48 | . . 12 . 36 Cannon . | . . . . . Launcher 14 | . . 12 1 1 Special 2 | . . . . 2 Kinetic 17 | . . . . 17 Thermal 20 | . . . . 20 Explosive 14 | . . 12 1 1 Electromagnetic 13 | . . 12 . 1 Robot Hit Streak 23 | . . 4 . 23 Robot Miss Streak 3 | . . 3 . 2 Penetration Max . | . . . . . Secondary Targets . | . . . . . Shots Hit Robots 39 | . . 9 . 30 Core Hits 26 | . . 12 . 14 Critical Kills . | . . . . . Critical Parts Destroyed . | . . . . . Critical Strikes . | . . . . . Melee Attacks . | . . . . . Impact . | . . . . . Slashing . | . . . . . Piercing . | . . . . . Sneak Attacks . | . . . . . Combat Hostiles . | . . . . . Follow-up Attacks . | . . . . . Damage Inflicted 817 | . . 457 . 360 Guns 330 | . . 43 . 287 Cannons . | . . . . . Explosions 397 | . . 397 . . Melee . | . . . . . Ramming 42 | . . 17 . 25 Kinetic 92 | . . . . 92 Thermal 243 | . . . . 243 Explosive 397 | . . 397 . . Electromagnetic 43 | . . 43 . . Impact . | . . . . . Slashing . | . . . . . Piercing . | . . . . . Highest Corruption 2 | . . . . 2 Average Corruption 2 | . . . . 2 Corruption Purged . | . . . . . Corruption Blocked . | . . . . . Effects 5 | . . . . 5 Message Errors 1 | . . . . 1 Matter Fused 2 | . . . . 2 Energy Discharges 1 | . . . . 1 Data Loss (major) 1 | . . . . 1 Overload Shots . | . . . . . Overflow Damage 19 | . . 19 . . Projectiles . | . . . . . Explosions 19 | . . 19 . . Melee . | . . . . . Knockbacks . | . . . . . Impact . | . . . . . Kinetic . | . . . . . Secondary . | . . . . . Self-Inflicted Damage 58 | . . 23 . 35 Shots 2 | . . 1 . 1 Rammed 6 | . . 1 . 5 Targets Rammed 7 | . . 2 . 5 Kicked 1 | . . 1 . . Crushed . | . . . . . Highest Temperature 76 | . . 76 . 27 Average Temperature 17 | . . 25 . 7 Received Heat Transfer 388 | . 6 40 18 324 Siege Activations . | . . . . . Martial Activations . | . . . . . Shielding Activations . | . . . . . Robots Disrupted . | . . . . . Combat Hostiles . | . . . . . Robots Corrupted . | . . . . . Combat Hostiles . | . . . . . Parts Fried . | . . . . . Impact Corruptions . | . . . . . Robots Melted . | . . . . . Combat Hostiles . | . . . . . Parts Melted . | . . . . . Heat Transferred 550 | . . . . 550 Parts Sabotaged . | . . . . . Parts Stolen . | . . . . . Parts Stripped . | . . . . . Power Chain Reactions . | . . . . . Alert | -11 -10 -10 -9 -9 ------- Run | Yrd Mat Min Mat Sto Maximum Alert Level . | . . . . . Low Security (%) 100 | 100 100 100 100 100 Level 1 . | . . . . . Level 2 . | . . . . . Level 3 . | . . . . . Level 4 . | . . . . . Level 5 . | . . . . . High Security . | . . . . . Max Security . | . . . . . Peak Influence 195 | . 12 20 22 195 Initial . | . . . . . Average 30 | . 3 2 12 71 Influence Increases 566 | . 12 62 22 470 Destroy 0b10 Robot/C 80 | . . . . 80 Destroy 0b10 Robot/NC 15 | . . . . 15 Destroy Leader 20 | . . . . 20 Successful Hack 12 | . 12 . . . Disable Machine 30 | . . . 15 15 Destroy Structure 64 | . . 47 7 10 Lose Combat Pursuer 345 | . . 15 . 330 Influence Decreases 404 | . 12 62 20 310 Entered New Map 2 | . . . . 2 Time Decay 277 | . 12 62 20 183 Lost Part 125 | . . . . 125 Squads Dispatched 2 | . . . . 2 Investigation . | . . . . . Extermination . | . . . . . Reinforcement 2 | . . . . 2 Assault . | . . . . . Garrison . | . . . . . Intercept . | . . . . . Searches Triggered . | . . . . . Construction Impeded . | . . . . . Haulers Reinforced . | . . . . . Active Scanning Responses . | . . . . . Cargo Convoy Interrupts . | . . . . . Stealth | -11 -10 -10 -9 -9 --------- Run | Yrd Mat Min Mat Sto Distress Signals 1 | . . . 1 . Communications Jammed . | . . . . . Distress Signals . | . . . . . Times Spotted 49 | . 2 13 4 30 Peak Tracking Total 9 | . 2 7 7 9 Tactical Retreats 13 | . . 4 . 9 Traps | -11 -10 -10 -9 -9 ------- Run | Yrd Mat Min Mat Sto Traps Triggered . | . . . . . Indirectly . | . . . . . Trap Hack Attempts . | . . . . . Triggered . | . . . . . Disarmed . | . . . . . Reprogrammed . | . . . . . Reused . | . . . . . Traps Extracted . | . . . . . Installed . | . . . . . Triggered . | . . . . . Machines | -11 -10 -10 -9 -9 ---------- Run | Yrd Mat Min Mat Sto Machines Disabled 2 | . . . 1 1 Max in Single Turn 1 | . . . 1 1 Machines Repaired . | . . . . . Machines Dismantled . | . . . . . Machines Sabotaged . | . . . . . Overloaded Fab Kills . | . . . . . Hacking | -11 -10 -10 -9 -9 --------- Run | Yrd Mat Min Mat Sto Machines Accessed 1 | . 1 . . . Terminals 1 | . 1 . . . Fabricators . | . . . . . Repair Stations . | . . . . . Recycling Units . | . . . . . Scanalyzers . | . . . . . Garrison Access . | . . . . . Total Hacks 4 | . 4 . . . Successful 2 | . 2 . . . Failed 2 | . 2 . . . Catastrophic . | . . . . . Database Lockouts . | . . . . . Manual . | . . . . . Terminals 4 | . 4 . . . Fabricators . | . . . . . Repair Stations . | . . . . . Recycling Units . | . . . . . Scanalyzers . | . . . . . Garrison Access . | . . . . . Terminal Hacks 2 | . 2 . . . Security Status 1 | . 1 . . . Hauler Manifests 1 | . 1 . . . Fabricator Hacks . | . . . . . Repair Station Hacks . | . . . . . Recycling Unit Hacks . | . . . . . Scanalyzer . | . . . . . Garrison Access Hacks . | . . . . . Unauthorized Hacks . | . . . . . Terminals . | . . . . . Fabricators . | . . . . . Repair Stations . | . . . . . Recycling Units . | . . . . . Scanalyzers . | . . . . . Garrison Access . | . . . . . Data Cores Recovered . | . . . . . Used . | . . . . . Hacking Detections 1 | . 1 . . . Full Trace Events . | . . . . . Feedback Events . | . . . . . Feedback Blocked . | . . . . . Robot Schematics Acquired . | . . . . . Robots Built . | . . . . . Authchips . | . . . . . Time . | . . . . . Total Robot Build Rating . | . . . . . Part Schematics Acquired . | . . . . . Parts Built . | . . . . . Authchips . | . . . . . Time . | . . . . . Total Part Build Rating . | . . . . . Part Studies Acquired . | . . . . . Parts Repaired . | . . . . . Time . | . . . . . Parts Recycled . | . . . . . Recycled Matter . | . . . . . Retrieved Matter . | . . . . . Retrieved Components . | . . . . . Parts Scanalyzed . | . . . . . Part Schematics Acquired . | . . . . . Parts Damaged . | . . . . . Bothacking | -11 -10 -10 -9 -9 ------------ Run | Yrd Mat Min Mat Sto Used RIF Installer . | . . . . . Robots Hacked . | . . . . . Non-combat . | . . . . . Combat . | . . . . . Robot Hacks Applied . | . . . . . Relay Couplers Released . | . . . . . Fabnet Peak Effective % . | . . . . . Robots Rewired . | . . . . . Allies Hacked . | . . . . . Hacks Repelled . | . . . . . Allies | -11 -10 -10 -9 -9 -------- Run | Yrd Mat Min Mat Sto Total Allies 1 | . . 1 . . Largest Group 1 | . . 1 . . Highest-Rated Group 31 | . . 31 . . Highest-Rated Ally 31 | . . 31 . . Total Orders . | . . . . . Ally Attacks 8 | . . 8 . . Total Damage 106 | . . 106 . . Kills 4 | . . 4 . . Allies Corrupted . | . . . . . Allies Melted . | . . . . . Intel | -11 -10 -10 -9 -9 ------- Run | Yrd Mat Min Mat Sto Active Infowar (turns) . | . . . . . Robot Analysis Total . | . . . . . Derelict Logs Recovered 1 | . . 1 . . Drone Launches . | . . . . . Drone Recoveries . | . . . . . Exploration | -11 -10 -10 -9 -9 ------------- Run | Yrd Mat Min Mat Sto Turns Passed 1044 | 75 76 425 53 415 Spaces Moved 926 | 53 63 317 68 425 Core 15 | 11 . . . 4 Treads . | . . . . . Legs 374 | 42 63 269 . . Wheels . | . . . . . Hover 537 | . . 48 68 421 Flight . | . . . . . Fastest Speed 50 | 50 120 77 66 58 Average Speed 89 | 114 120 119 67 63 Slowest Speed 190 | 150 120 190 77 150 Overloaded Moves . | . . . . . Propulsion Burnouts . | . . . . . Robots Hopped . | . . . . . Potential Cave-ins . | . . . . . Cave-ins Triggered . | . . . . . Exploration Rate (%) 32 | 5 14 75 8 58 Regions Visited 4 Branch Regions 2 Pre-discovered Areas . | . . . . . Known Exits Taken . | . . . . . Unknown Exits Taken 4 | 1 1 1 1 . Scrap Searched . | . . . . . Spaces Dug . | . . . . . Terrain Destroyed 84 | . . 68 7 9 Melee . | . . . . . Projectile . | . . . . . AOE 84 | . . 68 7 9 Terrain Rammed . | . . . . . Walls Destroyed . | . . . . . Machines Disabled . | . . . . . Actions | -11 -10 -10 -9 -9 --------- Run | Yrd Mat Min Mat Sto Total 1065 | 64 63 336 73 529 Wait 53 | . . . . 53 Move 922 | 52 62 316 67 425 Hop . | . . . . . Pick Up 11 | 6 1 1 2 1 Fast Attach 15 | 6 . 2 1 6 Attach 5 | . . . . 5 Detach . | . . . . . Swap 2 | . . 1 . 1 Drop 7 | . . 2 2 3 Fire 43 | . . 12 1 30 Melee . | . . . . . Ram 6 | . . 1 . 5 Kick 1 | . . 1 . . Crush . | . . . . . Escape Stasis . | . . . . . Rewire . | . . . . . Trap . | . . . . . Miscellaneous . | . . . . . Route ------- -11/Scrapyard -10/Materials -10/Mines -9/Materials -9/Storage History --------- Turn | Location | Event 13 | -11/Scrapyard | Discovered new exit (range 16) 76 | -11/Scrapyard | Entered Materials 103 | -10/Materials | Discovered new exit (range 13) 152 | -10/Materials | Entered Mines 253 | -10/Mines | Received a Mining Laser from a helpful Derelict 305 | -10/Mines | Build established: Mutant 320 | -10/Mines | Assembled infested the area 386 | -10/Mines | Received a Rocket Launcher from a helpful Derelict 569 | -10/Mines | Learned Materials terminal intel 572 | -10/Mines | Discovered new exit (range 8) 577 | -10/Mines | Entered Materials 577 | -9/Materials | Evolved 2 slots: Propulsion x1, Utility x1 578 | -9/Materials | Loaded intel: 12 terminal locations 621 | -9/Materials | Discovered new exit (range 13) 630 | -9/Materials | Entered Storage 742 | -9/Storage | Lost 4 parts (1p1n2w) 938 | -9/Storage | Core integrity fell below 50% 1022 | -9/Storage | Core integrity fell below 20% 1045 | -9/Storage | Destroyed by Y-45 Defender with Heavy Assault Rifle Last Messages --------------- Lgt. Assault Rifle destroyed. U-05 Engineer lays Concrete. System corrupted: Energy discharge (-35). Critical hit (Burn: +37). Y-45 Defender destroyed. K-01 Serf collects debris. Weapon Shielding destroyed. Y-45 Defender destroyed. K-01 Serf collects debris. Sml. Laser destroyed. Mining Laser destroyed. Acquired Mining Laser. K-01 Serf collects debris. Acquired Seismic Detector. K-01 Serf collects debris. K-01 Serf destroyed. Mining Laser destroyed. Acquired 55 matter. Acquired Lgt. Assault Rifle. Critical hit (Burn: +37). Map ----- +----------------------------------------------------+ | ????????????????????????# #??# +?????????# ###/### | | ????????????????????????# #??# #?????????# #? ? | | ????????????????????????# #??# #?????????# # """ | | ????????????????????????# #??# #????????? # """ | | ??##########+############ #??? ?????????? # """ ? | | ??# # #??? ????????? # | | ??# # #############??? ????????? + | | ??# + #??????????????? ????????? ####T## | | ??# # #??????????????? ???????? ??????? | | ??# """ + #??????????????? ???????? ??????? | | ??# """ # #???????????????#???????? ??????? | | ??# """ # #??????????????????????? ??????? | | ??# """ # #???????????????????????? ? ??????? | | ??# """ # #??????????????????????????????????? | | ??# # #??????????????????????????????????? | | ?????#### # #??????#???????????????????????????? | | ????????### #???? "#???????????????????????????? | | ??????????# #?? "#???????????????????????????? | | ??????????# # "#???????????????????????????? | | ??????????+ + #????????????????????????????? | | ??????????# # #?###????????????????????????? | | ??????????# #??####?# ####?????????????????????? | | ??????????# #???????# !!=#?????????????????????? | | ??????????# #???????#*==%#?????????????????????? | | ??????????# #?????##### ######?????????????????? | | ????####### #?????# =*@Y! #?????????????????? | | # [[ / #?????# [!! #?????????????????? | | [[ # #?????# #???????????????### | | # [[ # #?????# ########???????????????# | | # ?+ +?????# #??????????????????????# " | | # ?# #?????# #??????????????????????# " | | # """""??# #?????# #??????????????????????# " | | # """""??# #?????# #??????????????????????# | | ??????????# #?????# #??????????????????????# | | ??????????# ####### #??????????????????????# | | ??????????# #??????????????????????# | | ??????????# #????????????????####### | | ??????????# ^ #????????????????# ### | | ??????????###############????????????????# | | ?????????????????????????????????????????# | | ?????????????????????????????????????????# | | ?????????????????????????????????????????# ### | | ????????????????????????????????????####### ##?? | | ????????????????????????????????????# # #??? | | ????????????????????????????????????# # #??? | | ?????????????##?????????????????????# *# #??? | | ?????????????# ?????????????????????# [+ #??? | | ?????????????# ??????????##"?????# =#= #??? | | ?????????????# """??????????T ?????# # #??? | | ?????????????# """?????######+####### # #??? | +----------------------------------------------------+ Best States ------------- Heat Dissipation 28 Energy Generation 14 Energy Capacity 280 Matter Stores 299 Matter Capacity 300 Sight Range 16 Terrain Scan Density 10 Weapon Shielding 33 Evasion (%) 55 Item Schematics ----------------- None Robot Schematics ------------------ None Fabricated ------------ Nothing Repaired ---------- Nothing Studied --------- None Alien Tech Used ----------------- None Achievements -------------- None Challenges ------------ None Game ------ Seed ArmoredRocketLink Manual? 0 Play Time 00:14:02 Cumulative 25.2 hours Start 2026.07.04 @ 17:56:29 End 2026.07.04 @ 18:07:27 Sessions 1 Manual Loads 0 Difficulty Rogue Special Mode None Game No. 37 Rogue 32 Adventurer 1 Explorer 4 Win Type - Total 0 Types 0/0/0/0/0/0/0/0/0/0 Lore% 10 Gallery% 19 Achievement% 18 Wizard Run 0 Options --------- Layout 1 ASCII 0 Keyboard 0 Movement Arrows Keybinds 0 Fullscreen 1 Font 24/Smallcaps Map View 50x35 Zoom Use 0% Tactical HUD 0 Map Filters NONE Filters NONE Steam 1 RUN: 6ea416df-350d-4c0c-a4bc-057a0d0b8e88